Workbook

Sheet Instructions
A1: TST Spreadsheet Tool v1.9
A3: TST Summary
A4: The Test of Significant Toxicity (TST) is a new statistical approach that assesses the whole effluent toxicity (WET) measurement of wastewater effects on specific test organisms’ ability to survive, grow, and reproduce developed by the U.S. EPA. TST uses hypothesis testing techniques which examines whether a sample, at the critical concentration (e.g., in-stream waste concentration or IWC), and the control within a WET test differ by an unacceptable amount (the amount that would have a measured adverse effect on the ability of aquatic organisms to thrive and survive). A sample can be either an effluent, stormwater, or receiving water. Once the WET test has been conducted, the TST approach can be used to analyze valid WET test data to assess whether the sample is toxic. The TST approach is designed to be used for a two concentration data analysis of the sample's critical concentration (e.g., IWC or a receiving water concentration) as compared to a control concentration.
A5: TST Spreadsheet Tool
A6: This tool was created for several of the EPA WET test methods for the West Coast marine species (USEPA 1995) and the 2002 EPA WET test methods (USEPA 2002a, 2002b, 2002c) for other species.
A8: For questions, please contact:
A9: Jaime Gilliam
A10: Tetra Tech, Inc.
A11: 410-356-8993
A13: The update from version 1.8 to 1.9 was performed by:
A14: John Wheeler
A15: Division of Water Quality
A16: State Water Resources Control Board
A17: John.Wheeler@waterboards.ca.gov
A19: Instructions
A20: Before using this program, Macros must be enabled and the security certificate must be accepted.
A22: For Excel 2007:
A23: 1. Click the “Office Button” (big Office logo in the upper left), and select “Excel Options” (lower right)
A24: 2. Click "Trust Center" on the left menu
A25: 3. Click "Trust Center Settings" (lower right)
A26: 4. Click "Macro Settings"
A27: 5. Click "Enable all macros" (last option)
A28: 6. Click "ok" buttons to clear all open windows
A29: 7. Exit program and re-open the file to use
A31: For Excel pre-2007:
A32: 1. Go to "Tools", "Macro", and Click "Security"
A33: 2. Set Macro security to medium
A34: 3. Exit program and re-open file
A35: 4. Click "Enable Macros"
A37: To use the program:
A38: 1. Enter test information in the first block of pink shaded cells - Lab Name, Client Name, Test ID, Test Date, Test Duration, and IWC (Critical Concentration)
A39: * "Critical Conc." means a facility specific IWC or 100% receiving water, etc. (i.e., one concentration of WET test)
A40: 2. Fill in your raw test data (Number of Organisms Exposed or Counted and Response) for as many replicates as conducted in WET test
A41: * Percent data (survival, germination, etc.) should be input as whole numbers (not as decimals)
A42: * Fish growth must be input as biomass
A43: 3. Choose the appropriate test information from the pink "Click to choose from menu" cells
A44: 4. All gray cells will fill-in automatically if needed
A45: 5. Click on the yellow button to save data to the "Statistics" tab if desired
A46: * This will create a running log of the calculated values for each test entered
A47: 6. Click on the "TST Summary Sheet" tab for a printer friendly version of the data and print if desired
A48: 7. Click on the green button on the "Calculator" tab to clear all the red input cells to enter new dataset
A49: * Clearing the data on the "Calculator" tab will also clear the "TST Summary Sheet" - be sure to print before clearing
A50: 8. Enter your next set of test data as directed above and a log of your data will be formed on the "Statistics" tab
A51: 9. You must save the Excel workbook file when finished if you want your data to be available the next time you open the file
A53: Results description:
A54: A t-value is calculated for your dataset ("Calculated t-value") and compared against the "Critical t-value" based on the degrees of freedom of your dataset. If the Calculated t-value is greater than the Critical t-value, then the sample is not toxic at that concentration. If the calculated value is less than or equal to the critical value, then the sample is toxic. In the event that there is no variance in both the control and the IWC, the percent effect is used to determine whether the sample is toxic.
A56: Notes:
A57: For acute tests with optional 2 or 4 replicates (e.g., fathead minnow), TST requires 4 replicates.
A58: The chronic survival analysis is not available for C. dubia.
A59: For a list of alpha, beta, and b (RMD) values for each test method/species, please refer to Table 1 of the Toxicity Provisions.
A60: If no variance in both the control and the IWC, a percent effect <25% for chronic, or <20% for acute is considered "Passing".

Sheet Updates
A1: TST Calculator v1.9 Updates (performed April 2021):
A2: The calculator was expanded to allow the user to input data for up to 40 replicates, instead of 20.
A3: Minor formatting changes were made, in order to make the spreadsheet tool more accessible to individuals with disabilities (e.g. removed merged cells).
A4: The "TST Summary Sheet" sheet was rearranged to allow data from up to 40 replicates to fit on one printed page.
A5: Screen tips were added to the "Calculator" sheet, to provide instructions when the data input cells are selected.
A6: The VBA code and hidden sheets were updated to work properly with the updated "Calculator" tab.
A7: Certain terms used in the spreadsheet were slightly changed.
A8: The "Example" sheet was updated in order to match the updated "Calculator" sheet.
A10: TST Calculator v1.8 Updates:
A11: TST Calculator v1.7 was updated to include space for a lab and client name, as well as making cells larger for test information input.

Sheet Example
K1: Click to choose from menu | L1: Click to choose from menu | M1: Click to choose from menu | T1: Conduct WET Test
K2: Fertilization | L2: A. affinis (topsmelt) | M2: Acute | T2: ↓
K3: Germination | L3: A. bahia (mysid shrimp) | M3: Chronic | T3: Apply arcsine square root transformation for percent data
A4: Lab Name | B4: Example Laboratory | K4: Germ-Tube Length | L4: A. punctulata (echinoderm) | T4: ↓
A5: Client Name | B5: Example Client | K5: Growth | L5: C. dubia (water flea) | T5: Calculate t value using TST Welch’s test
A6: Test ID | B6: Test_001 | K6: Larval Development | L6: C. gigas (oyster) | T6: ↓
A7: Test Date | B7: 2020-04-14 | K7: Reproduction | L7: C. variegatus (sheepshead minnow) | T7: Calculated t-value > critical t-value?
A8: Test Duration | B8: 7 day | K8: Survival | L8: D. excentricus (echinoderm) | S8: ↓ | U8: ↓
A9: IWC | B9: 50% effluent | L9: D. magna (water flea) | S9: YES | U9: NO
L10: D. pulex (water flea) | S10: "PASS" | U10: "FAIL"
B11: Control Data | C11: Control Data | D11: IWC (Instream Waste Concentration) Data | E11: IWC (Instream Waste Concentration) Data | I11: Arcsine SqRt Transformation | L11: H. azteca (amphipod) | S11: Sample is NOT Toxic | U11: Sample is Toxic | V11: If no variance in both the control and the IWC, a % difference <25 for chronic, or <20 for acute is considered "Passing".
A12: Replicate Number | B12: Number of Organisms Exposed or Counted | C12: Response (Final Count, Weight, Length, etc.) | D12: Number of Organisms Exposed or Counted | E12: Response (Final Count, Weight, Length, etc.) | F12: Control | G12: IWC | I12: Control | J12: Critical Conc. (IWC) | L12: H. costata (mysid) | V12: =IF(AND(S19=0,T19=0),((AVERAGE(C13:C52)-AVERAGE(E13:E52))/AVERAGE(C13:C52))*100,"") -> 
A13: 1 | B13: 10 | C13: 10 | D13: 10 | E13: 9 | F13: =IF(AND(ISNUMBER(C13),$C$60="Yes"),C13/B13,"") -> 1 | G13: =IF(AND(ISNUMBER(E13),$C$60="Yes"),E13/D13,"") -> 0.9 | I13: =IF(AND($C$60="Yes",ISNUMBER(F13),F13=0),ASIN(SQRT(1/(4*B13))),IF(AND($C$60="Yes",ISNUMBER(F13),F13=1),ASIN(SQRT(1-(1/(4*B13)))),IF(AND($C$60="Yes",ISNUMBER(F13)),ASIN(SQRT(F13)),""))) -> 1.412016112 | J13: =IF(AND($C$60="Yes",ISNUMBER(G13),G13=0),ASIN(SQRT(1/(4*D13))),IF(AND($C$60="Yes",ISNUMBER(G13),G13=1),ASIN(SQRT(1-(1/(4*D13)))),IF(AND($C$60="Yes",ISNUMBER(G13)),ASIN(SQRT(G13)),""))) -> 1.249045772 | L13: H. rufescens (red abalone)
A14: 2 | B14: 10 | C14: 9 | D14: 10 | E14: 8 | F14: =IF(AND(ISNUMBER(C14),$C$60="Yes"),C14/B14,"") -> 0.9 | G14: =IF(AND(ISNUMBER(E14),$C$60="Yes"),E14/D14,"") -> 0.8 | I14: 1.249045772 | J14: 1.107148718 | L14: M. berryllina (inland silverside)
A15: 3 | B15: 10 | C15: 10 | D15: 10 | E15: 9 | F15: 1 | G15: 0.9 | I15: 1.412016112 | J15: 1.249045772 | L15: M. menidia (atlantic silverside)
A16: 4 | B16: 10 | C16: 10 | D16: 10 | E16: 8 | F16: 1 | G16: 0.8 | I16: 1.412016112 | J16: 1.107148718 | L16: M. peninsulae (tidewater silverside) | R16: Statistic | S16: Control | T16: IWC
A17: 5 | L17: M. pyrifera (giant kelp) | R17: =IF(AND($C$60="No",ISNUMBER(C13)), "Mean of Raw Data",IF(AND($C$60="Yes",ISNUMBER(C13)),"Percent Mean of Raw Data","")) -> Percent Mean of Raw Data | S17: =IF(AND($C$60="No",ISNUMBER(C13)), AVERAGE(C13:C52),IF(AND($C$60="Yes",ISNUMBER(C13)),AVERAGE(C13:C52)/AVERAGE(B13:B52),"")) -> 0.975 | T17: =IF(AND($C$60="No",ISNUMBER(E13)), AVERAGE(E13:E52),IF(AND($C$60="Yes",ISNUMBER(E13)),AVERAGE(E13:E52)/AVERAGE(D13:D52),"")) -> 0.85
A18: 6 | L18: Mytilus sp. (mussel) | R18: =IF(AND($C$60="No",ISNUMBER(C13)), "Mean used in Calculation (non-transformed)",IF(AND($C$60="Yes",ISNUMBER(C13)),"Mean used in Calcuation (transformed)","")) -> Mean used in Calcuation (transformed) | S18: =IF(C60="NO",AVERAGE(C13:C52), IF(C60="YES",AVERAGE(I13:I52),"")) -> 1.371273527 | T18: =IF(C60="NO",AVERAGE(E13:E52), IF(C60="YES",AVERAGE(J13:J52),"")) -> 1.178097245
A19: 7 | L19: O. mykiss (rainbow trout) | R19: =IF(AND($C$60="No",ISNUMBER(C13)), "Variance used in Calculation (non-transformed)",IF(AND($C$60="Yes",ISNUMBER(C13)),"Variance used in Calcuation (transformed)","")) -> Variance used in Calcuation (transformed) | S19: =IF(C60="NO",VAR(C13:C52),IF(C60="YES",VAR(I13:I52),"")) -> 0.00663983291 | T19: =IF(C60="NO",VAR(E13:E52),IF(C60="YES",VAR(J13:J52),"")) -> 0.006711591368
A20: 8 | L20: P. promelas (fathead minnow) | R20: =IF(AND($C$60="No",ISNUMBER(C13)), "Standard Deviation of Raw Data",IF(AND($C$60="Yes",ISNUMBER(C13)),"Standard Deviation of Transformed Data","")) -> Standard Deviation of Transformed Data | S20: =IF(ISNUMBER(S19),SQRT(S19),"") -> 0.08148516988 | T20: =IF(ISNUMBER(T19),SQRT(T19),"") -> 0.08192430267
A21: 9 | L21: S. capricornutum (green algae) | R21: =IF(AND($C$60="No",ISNUMBER(C13)), "CV of Raw Data",IF(AND($C$60="Yes",ISNUMBER(C13)),"CV of Transformed Data","")) -> CV of Transformed Data | S21: =IF(ISNUMBER(S18),S20/S18,"") -> 0.05942298765 | T21: =IF(ISNUMBER(T18),T20/T18,"") -> 0.06953950789
A22: 10 | L22: S. fontinalis (brook trout) | R22: =IF(ISNUMBER(S22),"n","") -> n | S22: =IF($C$60="NO",COUNT(C13:C52),IF($C$60="YES",COUNT(I13:I52),"")) -> 4 | T22: =IF($C$60="NO",COUNT(E13:E52),IF($C$60="YES",COUNT(J13:J52),"")) -> 4
A23: 11 | L23: S. purpuratus (echinoderm)
A24: 12 | L24: T. gratilla (echinoderm) | R24: Mean % Effect at IWC | S24: =IF(AND(ISNUMBER(S17),ISNUMBER(T17)),((S17-T17)/S17)*100,"") -> 12.82051282
A25: 13
A26: 14 | R26: Calculated t-value= | S26: =IF(OR(ISTEXT(C62),ISTEXT(C64),C58="Click to choose from menu"),"",(T18-(C62*S18))/SQRT((T19/T22)+(((C62^2)*S19)/S22))) -> 1.548847035
A27: 15 | R27: Degrees of Freedom (ν)= | S27: =IF(OR(ISTEXT(C62),ISTEXT(C64),C58="Click to choose from menu"),"",INT(((((T19/T22)+((((C62)^2)*S19)/S22))^2))/((((T19/T22)^2)/(T22-1))+((((((C62^2)*S19)/S22)^2)/(S22-1)))))) -> 5
A28: 16 | R28: Critical t-value= | S28: =IF(OR(ISTEXT(C62),ISTEXT(C64),C58="Click to choose from menu"),"",TINV((2*C64),S27)) -> 1.475884049
A29: 17
A30: 18
A31: 19
A32: 20 | F32: =IF(AND(ISNUMBER(C32),$C$60="Yes"),C32/B32,"") ->  | G32: =IF(AND(ISNUMBER(E32),$C$60="Yes"),E32/D32,"") -> 
A33: 21
A34: 22
A35: 23
A36: 24
A37: 25
A38: 26 | I38: =IF(AND($C$60="Yes",ISNUMBER(F38),F38=0),ASIN(SQRT(1/(4*B38))),IF(AND($C$60="Yes",ISNUMBER(F38),F38=1),ASIN(SQRT(1-(1/(4*B38)))),IF(AND($C$60="Yes",ISNUMBER(F38)),ASIN(SQRT(F38)),""))) -> 
A39: 27
A40: 28
A41: 29 | J41: =IF(AND($C$60="Yes",ISNUMBER(G41),G41=0),ASIN(SQRT(1/(4*D41))),IF(AND($C$60="Yes",ISNUMBER(G41),G41=1),ASIN(SQRT(1-(1/(4*D41)))),IF(AND($C$60="Yes",ISNUMBER(G41)),ASIN(SQRT(G41)),""))) -> 
A42: 30
A43: 31
A44: 32 | I44: =IF(AND($C$60="Yes",ISNUMBER(F44),F44=0),ASIN(SQRT(1/(4*B44))),IF(AND($C$60="Yes",ISNUMBER(F44),F44=1),ASIN(SQRT(1-(1/(4*B44)))),IF(AND($C$60="Yes",ISNUMBER(F44)),ASIN(SQRT(F44)),""))) -> 
A45: 33
A46: 34
A47: 35
A48: 36
A49: 37
A50: 38
A51: 39 | I51: =IF(AND($C$60="Yes",ISNUMBER(F51),F51=0),ASIN(SQRT(1/(4*B51))),IF(AND($C$60="Yes",ISNUMBER(F51),F51=1),ASIN(SQRT(1-(1/(4*B51)))),IF(AND($C$60="Yes",ISNUMBER(F51)),ASIN(SQRT(F51)),""))) ->  | J51: =IF(AND($C$60="Yes",ISNUMBER(G51),G51=0),ASIN(SQRT(1/(4*D51))),IF(AND($C$60="Yes",ISNUMBER(G51),G51=1),ASIN(SQRT(1-(1/(4*D51)))),IF(AND($C$60="Yes",ISNUMBER(G51)),ASIN(SQRT(G51)),""))) -> 
A52: 40 | F52: =IF(AND(ISNUMBER(C52),$C$60="Yes"),C52/B52,"") ->  | G52: =IF(AND(ISNUMBER(E52),$C$60="Yes"),E52/D52,"") ->  | I52: =IF(AND($C$60="Yes",ISNUMBER(F52),F52=0),ASIN(SQRT(1/(4*B52))),IF(AND($C$60="Yes",ISNUMBER(F52),F52=1),ASIN(SQRT(1-(1/(4*B52)))),IF(AND($C$60="Yes",ISNUMBER(F52)),ASIN(SQRT(F52)),""))) -> 
B54: Test Species? | C54: P. promelas (fathead minnow)
B56: Chronic or Acute? | C56: Acute
C57: =IF(AND(C54="C. dubia (water flea)",C56="Chronic",C58="Survival"),"Note: The chronic survival analysis is NOT available for C. dubia","") -> 
B58: Endpoint? | C58: Survival
B60: Percent Data? | C60: =IF(OR(C58="Reproduction",C58="Growth",C58="Germ-Tube Length"),"No",IF(OR(C58="Survival",C58="Fertilization",C58="Germination",C58="Larval Development"),"Yes","")) -> Yes
B62: b= | C62: =IF(AND(C54="C. dubia (water flea)",C56="Chronic",C58="Survival"),"",IF(C56="Chronic", 0.75, IF(C56="Acute", 0.8,""))) -> 0.8
B64: α= | C64: =IF(AND(C56="Chronic",C54="C. dubia (water flea)"),0.2,IF(AND(C56="Chronic",OR(C54="P. promelas (fathead minnow)",C54="S. capricornutum (green algae)",C54="C. variegatus (sheepshead minnow)",C54="M. berryllina (inland silverside)",C54="A. affinis (topsmelt)")),0.25,IF(AND(C56="Chronic",OR(C54="A. bahia (mysid shrimp)",C54="H. costata (mysid)")),0.15,IF(AND(C56="Chronic",OR(C54="A. punctulata (echinoderm)",C54="D. excentricus (echinoderm)",C54="S. purpuratus (echinoderm)",C54="H. rufescens (red abalone)",C54="M. pyrifera (giant kelp)", C54="C. gigas (oyster)", C54="Mytilus sp. (mussel)",C54="T. gratilla (echinoderm)")),0.05,IF(C56="Acute",0.1,""))))) -> 0.1

Sheet Calculator
K1: Click to choose from menu | L1: Click to choose from menu | M1: Click to choose from menu | T1: Conduct WET Test
K2: Fertilization | L2: A. affinis (topsmelt) | M2: Acute | T2: ↓
K3: Germination | L3: A. bahia (mysid shrimp) | M3: Chronic | T3: Apply arcsine square root transformation for percent data
A4: Lab Name | K4: Germ-Tube Length | L4: A. punctulata (echinoderm) | T4: ↓
A5: Client Name | K5: Growth | L5: C. dubia (water flea) | T5: Calculate t value using TST Welch’s test
A6: Test ID | K6: Larval Development | L6: C. gigas (oyster) | T6: ↓
A7: Test Date | K7: Reproduction | L7: C. variegatus (sheepshead minnow) | T7: Calculated t-value > critical t-value?
A8: Test Duration | K8: Survival | L8: D. excentricus (echinoderm) | S8: ↓ | U8: ↓
A9: IWC | L9: D. magna (water flea) | S9: YES | U9: NO
L10: D. pulex (water flea) | S10: "PASS" | U10: "FAIL"
B11: Control Data | C11: Control Data | D11: IWC (Instream Waste Concentration) Data | E11: IWC (Instream Waste Concentration) Data | I11: Arcsine SqRt Transformation | L11: H. azteca (amphipod) | S11: Sample is NOT Toxic | U11: Sample is Toxic | V11: If no variance in both the control and the IWC, a % difference <25 for chronic, or <20 for acute is considered "Passing".
A12: Replicate Number | B12: Number of Organisms Exposed or Counted | C12: Response (Final Count, Weight, Length, etc.) | D12: Number of Organisms Exposed or Counted | E12: Response (Final Count, Weight, Length, etc.) | F12: Control | G12: IWC | I12: Control | J12: Critical Conc. (IWC) | L12: H. costata (mysid) | V12: =IF(AND(S19=0,T19=0),((AVERAGE(C13:C52)-AVERAGE(E13:E52))/AVERAGE(C13:C52))*100,"") -> 
A13: 1 | F13: =IF(AND(ISNUMBER(C13),$C$60="Yes"),C13/B13,"") ->  | G13: =IF(AND(ISNUMBER(E13),$C$60="Yes"),E13/D13,"") ->  | I13: =IF(AND($C$60="Yes",ISNUMBER(F13),F13=0),ASIN(SQRT(1/(4*B13))),IF(AND($C$60="Yes",ISNUMBER(F13),F13=1),ASIN(SQRT(1-(1/(4*B13)))),IF(AND($C$60="Yes",ISNUMBER(F13)),ASIN(SQRT(F13)),""))) ->  | J13: =IF(AND($C$60="Yes",ISNUMBER(G13),G13=0),ASIN(SQRT(1/(4*D13))),IF(AND($C$60="Yes",ISNUMBER(G13),G13=1),ASIN(SQRT(1-(1/(4*D13)))),IF(AND($C$60="Yes",ISNUMBER(G13)),ASIN(SQRT(G13)),""))) ->  | L13: H. rufescens (red abalone)
A14: 2 | F14: =IF(AND(ISNUMBER(C14),$C$60="Yes"),C14/B14,"") ->  | G14: =IF(AND(ISNUMBER(E14),$C$60="Yes"),E14/D14,"") ->  | L14: M. berryllina (inland silverside)
A15: 3 | L15: M. menidia (atlantic silverside)
A16: 4 | L16: M. peninsulae (tidewater silverside) | R16: Statistic | S16: Control | T16: IWC
A17: 5 | L17: M. pyrifera (giant kelp) | R17: =IF(AND($C$60="No",ISNUMBER(C13)), "Mean of Raw Data",IF(AND($C$60="Yes",ISNUMBER(C13)),"Percent Mean of Raw Data","")) ->  | S17: =IF(AND($C$60="No",ISNUMBER(C13)), AVERAGE(C13:C52),IF(AND($C$60="Yes",ISNUMBER(C13)),AVERAGE(C13:C52)/AVERAGE(B13:B52),"")) ->  | T17: =IF(AND($C$60="No",ISNUMBER(E13)), AVERAGE(E13:E52),IF(AND($C$60="Yes",ISNUMBER(E13)),AVERAGE(E13:E52)/AVERAGE(D13:D52),"")) -> 
A18: 6 | L18: Mytilus sp. (mussel) | R18: =IF(AND($C$60="No",ISNUMBER(C13)), "Mean used in Calculation (non-transformed)",IF(AND($C$60="Yes",ISNUMBER(C13)),"Mean used in Calcuation (transformed)","")) ->  | S18: =IF(C60="NO",AVERAGE(C13:C52), IF(C60="YES",AVERAGE(I13:I52),"")) ->  | T18: =IF(C60="NO",AVERAGE(E13:E52), IF(C60="YES",AVERAGE(J13:J52),"")) -> 
A19: 7 | L19: O. mykiss (rainbow trout) | R19: =IF(AND($C$60="No",ISNUMBER(C13)), "Variance used in Calculation (non-transformed)",IF(AND($C$60="Yes",ISNUMBER(C13)),"Variance used in Calcuation (transformed)","")) ->  | S19: =IF(C60="NO",VAR(C13:C52),IF(C60="YES",VAR(I13:I52),"")) ->  | T19: =IF(C60="NO",VAR(E13:E52),IF(C60="YES",VAR(J13:J52),"")) -> 
A20: 8 | L20: P. promelas (fathead minnow) | R20: =IF(AND($C$60="No",ISNUMBER(C13)), "Standard Deviation of Raw Data",IF(AND($C$60="Yes",ISNUMBER(C13)),"Standard Deviation of Transformed Data","")) ->  | S20: =IF(ISNUMBER(S19),SQRT(S19),"") ->  | T20: =IF(ISNUMBER(T19),SQRT(T19),"") -> 
A21: 9 | L21: S. capricornutum (green algae) | R21: =IF(AND($C$60="No",ISNUMBER(C13)), "CV of Raw Data",IF(AND($C$60="Yes",ISNUMBER(C13)),"CV of Transformed Data","")) ->  | S21: =IF(ISNUMBER(S18),S20/S18,"") ->  | T21: =IF(ISNUMBER(T18),T20/T18,"") -> 
A22: 10 | L22: S. fontinalis (brook trout) | R22: =IF(ISNUMBER(S22),"n","") ->  | S22: =IF($C$60="NO",COUNT(C13:C52),IF($C$60="YES",COUNT(I13:I52),"")) ->  | T22: =IF($C$60="NO",COUNT(E13:E52),IF($C$60="YES",COUNT(J13:J52),"")) -> 
A23: 11 | L23: S. purpuratus (echinoderm)
A24: 12 | L24: T. gratilla (echinoderm) | R24: Mean % Effect at IWC | S24: =IF(AND(ISNUMBER(S17),ISNUMBER(T17)),((S17-T17)/S17)*100,"") -> 
A25: 13
A26: 14 | I26: =IF(AND($C$60="Yes",ISNUMBER(F26),F26=0),ASIN(SQRT(1/(4*B26))),IF(AND($C$60="Yes",ISNUMBER(F26),F26=1),ASIN(SQRT(1-(1/(4*B26)))),IF(AND($C$60="Yes",ISNUMBER(F26)),ASIN(SQRT(F26)),""))) ->  | J26: =IF(AND($C$60="Yes",ISNUMBER(G26),G26=0),ASIN(SQRT(1/(4*D26))),IF(AND($C$60="Yes",ISNUMBER(G26),G26=1),ASIN(SQRT(1-(1/(4*D26)))),IF(AND($C$60="Yes",ISNUMBER(G26)),ASIN(SQRT(G26)),""))) ->  | R26: Calculated t-value= | S26: =IF(OR(ISTEXT(C62),ISTEXT(C64),C58="Click to choose from menu"),"",(T18-(C62*S18))/SQRT((T19/T22)+(((C62^2)*S19)/S22))) -> 
A27: 15 | R27: Degrees of Freedom (ν)= | S27: =IF(OR(ISTEXT(C62),ISTEXT(C64),C58="Click to choose from menu"),"",INT(((((T19/T22)+((((C62)^2)*S19)/S22))^2))/((((T19/T22)^2)/(T22-1))+((((((C62^2)*S19)/S22)^2)/(S22-1)))))) -> 
A28: 16 | R28: Critical t-value= | S28: =IF(OR(ISTEXT(C62),ISTEXT(C64),C58="Click to choose from menu"),"",TINV((2*C64),S27)) -> 
A29: 17
A30: 18
A31: 19
A32: 20 | F32: =IF(AND(ISNUMBER(C32),$C$60="Yes"),C32/B32,"") ->  | G32: =IF(AND(ISNUMBER(E32),$C$60="Yes"),E32/D32,"") -> 
A33: 21
A34: 22
A35: 23
A36: 24
A37: 25
A38: 26 | I38: =IF(AND($C$60="Yes",ISNUMBER(F38),F38=0),ASIN(SQRT(1/(4*B38))),IF(AND($C$60="Yes",ISNUMBER(F38),F38=1),ASIN(SQRT(1-(1/(4*B38)))),IF(AND($C$60="Yes",ISNUMBER(F38)),ASIN(SQRT(F38)),""))) -> 
A39: 27
A40: 28
A41: 29 | J41: =IF(AND($C$60="Yes",ISNUMBER(G41),G41=0),ASIN(SQRT(1/(4*D41))),IF(AND($C$60="Yes",ISNUMBER(G41),G41=1),ASIN(SQRT(1-(1/(4*D41)))),IF(AND($C$60="Yes",ISNUMBER(G41)),ASIN(SQRT(G41)),""))) -> 
A42: 30
A43: 31
A44: 32 | I44: =IF(AND($C$60="Yes",ISNUMBER(F44),F44=0),ASIN(SQRT(1/(4*B44))),IF(AND($C$60="Yes",ISNUMBER(F44),F44=1),ASIN(SQRT(1-(1/(4*B44)))),IF(AND($C$60="Yes",ISNUMBER(F44)),ASIN(SQRT(F44)),""))) -> 
A45: 33
A46: 34
A47: 35
A48: 36
A49: 37
A50: 38
A51: 39 | I51: =IF(AND($C$60="Yes",ISNUMBER(F51),F51=0),ASIN(SQRT(1/(4*B51))),IF(AND($C$60="Yes",ISNUMBER(F51),F51=1),ASIN(SQRT(1-(1/(4*B51)))),IF(AND($C$60="Yes",ISNUMBER(F51)),ASIN(SQRT(F51)),""))) ->  | J51: =IF(AND($C$60="Yes",ISNUMBER(G51),G51=0),ASIN(SQRT(1/(4*D51))),IF(AND($C$60="Yes",ISNUMBER(G51),G51=1),ASIN(SQRT(1-(1/(4*D51)))),IF(AND($C$60="Yes",ISNUMBER(G51)),ASIN(SQRT(G51)),""))) -> 
A52: 40 | F52: =IF(AND(ISNUMBER(C52),$C$60="Yes"),C52/B52,"") ->  | G52: =IF(AND(ISNUMBER(E52),$C$60="Yes"),E52/D52,"") ->  | I52: =IF(AND($C$60="Yes",ISNUMBER(F52),F52=0),ASIN(SQRT(1/(4*B52))),IF(AND($C$60="Yes",ISNUMBER(F52),F52=1),ASIN(SQRT(1-(1/(4*B52)))),IF(AND($C$60="Yes",ISNUMBER(F52)),ASIN(SQRT(F52)),""))) -> 
B54: Test Species? | C54: Click to choose from menu
B56: Chronic or Acute? | C56: Click to choose from menu
C57: =IF(AND(C54="C. dubia (water flea)",C56="Chronic",C58="Survival"),"Note: The chronic survival analysis is NOT available for C. dubia","") -> 
B58: Endpoint? | C58: Click to choose from menu
B60: Percent Data? | C60: =IF(OR(C58="Reproduction",C58="Growth",C58="Germ-Tube Length"),"No",IF(OR(C58="Survival",C58="Fertilization",C58="Germination",C58="Larval Development"),"Yes","")) -> 
B62: b= | C62: =IF(AND(C54="C. dubia (water flea)",C56="Chronic",C58="Survival"),"",IF(C56="Chronic", 0.75, IF(C56="Acute", 0.8,""))) -> 
B64: α= | C64: =IF(AND(C56="Chronic",C54="C. dubia (water flea)"),0.2,IF(AND(C56="Chronic",OR(C54="P. promelas (fathead minnow)",C54="S. capricornutum (green algae)",C54="C. variegatus (sheepshead minnow)",C54="M. berryllina (inland silverside)",C54="A. affinis (topsmelt)")),0.25,IF(AND(C56="Chronic",OR(C54="A. bahia (mysid shrimp)",C54="H. costata (mysid)")),0.15,IF(AND(C56="Chronic",OR(C54="A. punctulata (echinoderm)",C54="D. excentricus (echinoderm)",C54="S. purpuratus (echinoderm)",C54="H. rufescens (red abalone)",C54="M. pyrifera (giant kelp)", C54="C. gigas (oyster)", C54="Mytilus sp. (mussel)",C54="T. gratilla (echinoderm)")),0.05,IF(C56="Acute",0.1,""))))) -> 

Sheet TST Summary Sheet
A1: Lab Name | B1: =IF(Calculator!B4="","",Calculator!B4) ->  | E1: Client Name | G1: =IF(Calculator!B5="","",Calculator!B5) -> 
A3: Test ID | B3: =IF(Calculator!B6="","",Calculator!B6) ->  | E3: Test Species | G3: =IF(Calculator!C54="Click to Choose from Menu","",Calculator!C54) -> 
A5: Test Date | B5: =IF(Calculator!B7="","",Calculator!B7) ->  | E5: Test Type | G5: =IF(Calculator!C56="Click to Choose from Menu","",Calculator!C56) -> 
A7: Duration | B7: =IF(Calculator!B8="","",Calculator!B8) ->  | E7: Endpoint | G7: =IF(Calculator!C58="Click to Choose from Menu","",Calculator!C58) -> 
A9: IWC | B9: =IF(Calculator!B9="","",Calculator!B9) -> 
A12: Statistic | E12: Control | G12: Instream Waste Concentration (IWC)
A13: =IF(Calculator!R17="","",Calculator!R17) ->  | E13: =IF(Calculator!S17="","",Calculator!S17) ->  | G13: =IF(Calculator!T17="","",Calculator!T17) -> 
A14: =IF(Calculator!R18="","",Calculator!R18) ->  | E14: =IF(Calculator!S18="","",Calculator!S18) ->  | G14: =IF(Calculator!T18="","",Calculator!T18) -> 
A15: =IF(Calculator!R19="","",Calculator!R19) ->  | E15: =IF(Calculator!S19="","",Calculator!S19) ->  | G15: =IF(Calculator!T19="","",Calculator!T19) -> 
A16: =IF(Calculator!R20="","",Calculator!R20) ->  | E16: =IF(Calculator!S20="","",Calculator!S20) ->  | G16: =IF(Calculator!T20="","",Calculator!T20) -> 
A17: =IF(Calculator!R21="","",Calculator!R21) ->  | E17: =IF(Calculator!S21="","",Calculator!S21) ->  | G17: =IF(Calculator!T21="","",Calculator!T21) -> 
A18: =IF(Calculator!R22="","",Calculator!R22) ->  | E18: =IF(Calculator!S22="","",Calculator!S22) ->  | G18: =IF(Calculator!T22="","",Calculator!T22) -> 
A21: Mean Percent Effect at the IWC
A22: =IF(Calculator!S24="","",Calculator!S24) -> 
A24: Calculated t-value | C24: Degrees of Freedom | E24: Critical t-value | G24: Percent Effect (if no variance)
A25: =IF(ISNUMBER(Calculator!S26),Calculator!S26,"") ->  | C25: =IF(ISNUMBER(Calculator!S27),Calculator!S27,"") ->  | E25: =IF(ISNUMBER(Calculator!S28),Calculator!S28,"") ->  | G25: =IF(Calculator!V12="","",Calculator!V12) -> 
A27: Results
A28: =IF(A25<E25,"Fail",IF(A25>E25,"Pass",IF(AND(G5="Acute",G25>=20),"Fail",IF(AND(G5="Acute",G25<20),"Pass",IF(AND(G5="Chronic",G25>=25),"Fail",IF(AND(G5="Chronic",G25<25),"Pass","")))))) ->  | C28: =IF(D28="","","Sample is ") ->  | D28: =IF(A25<E25,"Toxic",IF(A25>E25,"Non-toxic",IF(AND(G5="Acute",G25>=20),"Toxic",IF(AND(G5="Acute",G25<20),"Non-toxic",IF(AND(G5="Chronic",G25>=25),"Toxic",IF(AND(G5="Chronic",G25<25),"Non-toxic","")))))) -> 
A30: Raw Data
A32: Control Data | F32: Instream Waste Concentration Data
A33: Number of Organisms Exposed or Counted | B33: Response (Final Count, Weight, Length, etc.) | C33: Number of Organisms Exposed or Counted | D33: Response (Final Count, Weight, Length, etc.) | F33: Number of Organisms Exposed or Counted | G33: Response (Final Count, Weight, Length, etc.) | H33: Number of Organisms Exposed or Counted | I33: Response (Final Count, Weight, Length, etc.)
A35: =IF(Calculator!B13="","",Calculator!B13) ->  | B35: =IF(Calculator!C13="","",Calculator!C13) ->  | C35: =IF(Calculator!B33="","",Calculator!B33) ->  | D35: =IF(Calculator!C33="","",Calculator!C33) ->  | F35: =IF(Calculator!D13="","",Calculator!D13) ->  | G35: =IF(Calculator!E13="","",Calculator!E13) ->  | H35: =IF(Calculator!D33="","",Calculator!D33) ->  | I35: =IF(Calculator!E33="","",Calculator!E33) -> 
A36: =IF(Calculator!B14="","",Calculator!B14) ->  | B36: =IF(Calculator!C14="","",Calculator!C14) ->  | C36: =IF(Calculator!B34="","",Calculator!B34) ->  | D36: =IF(Calculator!C34="","",Calculator!C34) ->  | F36: =IF(Calculator!D14="","",Calculator!D14) ->  | G36: =IF(Calculator!E14="","",Calculator!E14) ->  | H36: =IF(Calculator!D34="","",Calculator!D34) ->  | I36: =IF(Calculator!E34="","",Calculator!E34) -> 
A37: =IF(Calculator!B15="","",Calculator!B15) ->  | B37: =IF(Calculator!C15="","",Calculator!C15) ->  | C37: =IF(Calculator!B35="","",Calculator!B35) ->  | D37: =IF(Calculator!C35="","",Calculator!C35) ->  | F37: =IF(Calculator!D15="","",Calculator!D15) ->  | G37: =IF(Calculator!E15="","",Calculator!E15) ->  | H37: =IF(Calculator!D35="","",Calculator!D35) ->  | I37: =IF(Calculator!E35="","",Calculator!E35) -> 
A38: =IF(Calculator!B16="","",Calculator!B16) ->  | B38: =IF(Calculator!C16="","",Calculator!C16) ->  | C38: =IF(Calculator!B36="","",Calculator!B36) ->  | D38: =IF(Calculator!C36="","",Calculator!C36) ->  | F38: =IF(Calculator!D16="","",Calculator!D16) ->  | G38: =IF(Calculator!E16="","",Calculator!E16) ->  | H38: =IF(Calculator!D36="","",Calculator!D36) ->  | I38: =IF(Calculator!E36="","",Calculator!E36) -> 
A39: =IF(Calculator!B17="","",Calculator!B17) ->  | B39: =IF(Calculator!C17="","",Calculator!C17) ->  | C39: =IF(Calculator!B37="","",Calculator!B37) ->  | D39: =IF(Calculator!C37="","",Calculator!C37) ->  | F39: =IF(Calculator!D17="","",Calculator!D17) ->  | G39: =IF(Calculator!E17="","",Calculator!E17) ->  | H39: =IF(Calculator!D37="","",Calculator!D37) ->  | I39: =IF(Calculator!E37="","",Calculator!E37) -> 
A40: =IF(Calculator!B18="","",Calculator!B18) ->  | B40: =IF(Calculator!C18="","",Calculator!C18) ->  | C40: =IF(Calculator!B38="","",Calculator!B38) ->  | D40: =IF(Calculator!C38="","",Calculator!C38) ->  | F40: =IF(Calculator!D18="","",Calculator!D18) ->  | G40: =IF(Calculator!E18="","",Calculator!E18) ->  | H40: =IF(Calculator!D38="","",Calculator!D38) ->  | I40: =IF(Calculator!E38="","",Calculator!E38) -> 
A41: =IF(Calculator!B19="","",Calculator!B19) ->  | B41: =IF(Calculator!C19="","",Calculator!C19) ->  | C41: =IF(Calculator!B39="","",Calculator!B39) ->  | D41: =IF(Calculator!C39="","",Calculator!C39) ->  | F41: =IF(Calculator!D19="","",Calculator!D19) ->  | G41: =IF(Calculator!E19="","",Calculator!E19) ->  | H41: =IF(Calculator!D39="","",Calculator!D39) ->  | I41: =IF(Calculator!E39="","",Calculator!E39) -> 
A42: =IF(Calculator!B20="","",Calculator!B20) ->  | B42: =IF(Calculator!C20="","",Calculator!C20) ->  | C42: =IF(Calculator!B40="","",Calculator!B40) ->  | D42: =IF(Calculator!C40="","",Calculator!C40) ->  | F42: =IF(Calculator!D20="","",Calculator!D20) ->  | G42: =IF(Calculator!E20="","",Calculator!E20) ->  | H42: =IF(Calculator!D40="","",Calculator!D40) ->  | I42: =IF(Calculator!E40="","",Calculator!E40) -> 
A43: =IF(Calculator!B21="","",Calculator!B21) ->  | B43: =IF(Calculator!C21="","",Calculator!C21) ->  | C43: =IF(Calculator!B41="","",Calculator!B41) ->  | D43: =IF(Calculator!C41="","",Calculator!C41) ->  | F43: =IF(Calculator!D21="","",Calculator!D21) ->  | G43: =IF(Calculator!E21="","",Calculator!E21) ->  | H43: =IF(Calculator!D41="","",Calculator!D41) ->  | I43: =IF(Calculator!E41="","",Calculator!E41) -> 
A44: =IF(Calculator!B22="","",Calculator!B22) ->  | B44: =IF(Calculator!C22="","",Calculator!C22) ->  | C44: =IF(Calculator!B42="","",Calculator!B42) ->  | D44: =IF(Calculator!C42="","",Calculator!C42) ->  | F44: =IF(Calculator!D22="","",Calculator!D22) ->  | G44: =IF(Calculator!E22="","",Calculator!E22) ->  | H44: =IF(Calculator!D42="","",Calculator!D42) ->  | I44: =IF(Calculator!E42="","",Calculator!E42) -> 
A45: =IF(Calculator!B23="","",Calculator!B23) ->  | B45: =IF(Calculator!C23="","",Calculator!C23) ->  | C45: =IF(Calculator!B43="","",Calculator!B43) ->  | D45: =IF(Calculator!C43="","",Calculator!C43) ->  | F45: =IF(Calculator!D23="","",Calculator!D23) ->  | G45: =IF(Calculator!E23="","",Calculator!E23) ->  | H45: =IF(Calculator!D43="","",Calculator!D43) ->  | I45: =IF(Calculator!E43="","",Calculator!E43) -> 
A46: =IF(Calculator!B24="","",Calculator!B24) ->  | B46: =IF(Calculator!C24="","",Calculator!C24) ->  | C46: =IF(Calculator!B44="","",Calculator!B44) ->  | D46: =IF(Calculator!C44="","",Calculator!C44) ->  | F46: =IF(Calculator!D24="","",Calculator!D24) ->  | G46: =IF(Calculator!E24="","",Calculator!E24) ->  | H46: =IF(Calculator!D44="","",Calculator!D44) ->  | I46: =IF(Calculator!E44="","",Calculator!E44) -> 
A47: =IF(Calculator!B25="","",Calculator!B25) ->  | B47: =IF(Calculator!C25="","",Calculator!C25) ->  | C47: =IF(Calculator!B45="","",Calculator!B45) ->  | D47: =IF(Calculator!C45="","",Calculator!C45) ->  | F47: =IF(Calculator!D25="","",Calculator!D25) ->  | G47: =IF(Calculator!E25="","",Calculator!E25) ->  | H47: =IF(Calculator!D45="","",Calculator!D45) ->  | I47: =IF(Calculator!E45="","",Calculator!E45) -> 
A48: =IF(Calculator!B26="","",Calculator!B26) ->  | B48: =IF(Calculator!C26="","",Calculator!C26) ->  | C48: =IF(Calculator!B46="","",Calculator!B46) ->  | D48: =IF(Calculator!C46="","",Calculator!C46) ->  | F48: =IF(Calculator!D26="","",Calculator!D26) ->  | G48: =IF(Calculator!E26="","",Calculator!E26) ->  | H48: =IF(Calculator!D46="","",Calculator!D46) ->  | I48: =IF(Calculator!E46="","",Calculator!E46) -> 
A49: =IF(Calculator!B27="","",Calculator!B27) ->  | B49: =IF(Calculator!C27="","",Calculator!C27) ->  | C49: =IF(Calculator!B47="","",Calculator!B47) ->  | D49: =IF(Calculator!C47="","",Calculator!C47) ->  | F49: =IF(Calculator!D27="","",Calculator!D27) ->  | G49: =IF(Calculator!E27="","",Calculator!E27) ->  | H49: =IF(Calculator!D47="","",Calculator!D47) ->  | I49: =IF(Calculator!E47="","",Calculator!E47) -> 
A50: =IF(Calculator!B28="","",Calculator!B28) ->  | B50: =IF(Calculator!C28="","",Calculator!C28) ->  | C50: =IF(Calculator!B48="","",Calculator!B48) ->  | D50: =IF(Calculator!C48="","",Calculator!C48) ->  | F50: =IF(Calculator!D28="","",Calculator!D28) ->  | G50: =IF(Calculator!E28="","",Calculator!E28) ->  | H50: =IF(Calculator!D48="","",Calculator!D48) ->  | I50: =IF(Calculator!E48="","",Calculator!E48) -> 
A51: =IF(Calculator!B29="","",Calculator!B29) ->  | B51: =IF(Calculator!C29="","",Calculator!C29) ->  | C51: =IF(Calculator!B49="","",Calculator!B49) ->  | D51: =IF(Calculator!C49="","",Calculator!C49) ->  | F51: =IF(Calculator!D29="","",Calculator!D29) ->  | G51: =IF(Calculator!E29="","",Calculator!E29) ->  | H51: =IF(Calculator!D49="","",Calculator!D49) ->  | I51: =IF(Calculator!E49="","",Calculator!E49) -> 
A52: =IF(Calculator!B30="","",Calculator!B30) ->  | B52: =IF(Calculator!C30="","",Calculator!C30) ->  | C52: =IF(Calculator!B50="","",Calculator!B50) ->  | D52: =IF(Calculator!C50="","",Calculator!C50) ->  | F52: =IF(Calculator!D30="","",Calculator!D30) ->  | G52: =IF(Calculator!E30="","",Calculator!E30) ->  | H52: =IF(Calculator!D50="","",Calculator!D50) ->  | I52: =IF(Calculator!E50="","",Calculator!E50) -> 
A53: =IF(Calculator!B31="","",Calculator!B31) ->  | B53: =IF(Calculator!C31="","",Calculator!C31) ->  | C53: =IF(Calculator!B51="","",Calculator!B51) ->  | D53: =IF(Calculator!C51="","",Calculator!C51) ->  | F53: =IF(Calculator!D31="","",Calculator!D31) ->  | G53: =IF(Calculator!E31="","",Calculator!E31) ->  | H53: =IF(Calculator!D51="","",Calculator!D51) ->  | I53: =IF(Calculator!E51="","",Calculator!E51) -> 
A54: =IF(Calculator!B32="","",Calculator!B32) ->  | B54: =IF(Calculator!C32="","",Calculator!C32) ->  | C54: =IF(Calculator!B52="","",Calculator!B52) ->  | D54: =IF(Calculator!C52="","",Calculator!C52) ->  | F54: =IF(Calculator!D32="","",Calculator!D32) ->  | G54: =IF(Calculator!E32="","",Calculator!E32) ->  | H54: =IF(Calculator!D52="","",Calculator!D52) ->  | I54: =IF(Calculator!E52="","",Calculator!E52) -> 

Sheet Statistics
A1: Lab Name | B1: Client Name | C1: Test ID | D1: Test Date | E1: Test Duration | F1: IWC | G1: Test Species | H1: Chronic or Acute | I1: Endpoint | J1: Mean % Effect at IWC | K1: Calculated t-value | L1: Critical t-value | M1: Percent Difference | N1: Pass or Fail | O1: Toxic or Non-toxic

Sheet Formulas (hidden)
A1: =Statistics!A1 -> Lab Name | B1: =Statistics!B1 -> Client Name | C1: =Statistics!C1 -> Test ID | D1: =Statistics!D1 -> Test Date | E1: =Statistics!E1 -> Test Duration | F1: Critical Conc. | G1: =Statistics!G1 -> Test Species | H1: =Statistics!H1 -> Chronic or Acute | I1: =Statistics!I1 -> Endpoint | J1: Mean % Effect at Critical Conc. | K1: =Statistics!K1 -> Calculated t-value | L1: =Statistics!L1 -> Critical t-value | M1: =Statistics!M1 -> Percent Difference | N1: =Statistics!N1 -> Pass or Fail | O1: =Statistics!O1 -> Toxic or Non-toxic
A2: =IF(Calculator!B4="","",Calculator!B4) ->  | B2: =IF(Calculator!B5="","",Calculator!B5) ->  | C2: =IF(Calculator!B6="","",Calculator!B6) ->  | D2: =IF(Calculator!B7="","",Calculator!B7) ->  | E2: =IF(Calculator!B8="","",Calculator!B8) ->  | F2: =IF(Calculator!B9="","",Calculator!B9) ->  | G2: =IF(Calculator!C54="Click to Choose from Menu","",Calculator!C54) ->  | H2: =IF(Calculator!C56="Click to Choose from Menu","",Calculator!C56) ->  | I2: =IF(Calculator!C58="Click to Choose from menu","",Calculator!C58) ->  | J2: =IF(ISNUMBER(Calculator!S24),Calculator!S24,"") ->  | K2: =IF(ISNUMBER(Calculator!S26),Calculator!S26,"") ->  | L2: =IF(ISNUMBER(Calculator!S28),Calculator!S28,"") ->  | M2: =IF(AND(Calculator!S19=0,Calculator!T19=0),((AVERAGE(Calculator!C13:C52)-AVERAGE(Calculator!E13:E52))/AVERAGE(Calculator!C13:C52))*100,"") ->  | N2: =IF(K2<L2,"Fail",IF(K2>L2,"Pass",IF(AND(H2="Acute",M2>=20),"Fail",IF(AND(H2="Acute",M2<20),"Pass",IF(AND(H2="Chronic",M2>=25),"Fail",IF(AND(H2="Chronic",M2<25),"Pass","")))))) ->  | O2: =IF(K2<L2,"Toxic",IF(K2>L2,"Non-toxic",IF(AND(H2="Acute",M2>=20),"Toxic",IF(AND(H2="Acute",M2<20),"Non-toxic",IF(AND(H2="Chronic",M2>=25),"Toxic",IF(AND(H2="Chronic",M2<25),"Non-toxic","")))))) -> 
A5: Formulas on this page (in Row 1) are used to copy data from Calculator worksheet to the Statistics worksheet.
A6: PasteSpecial-Values
A7: PasteSpecial-Formulas
